bitfinex-derivatives/quotes_SOLF0:USTF0_20250613
["timestamp","ask_amount","ask_price","bid_price","bid_amount"]
[1749839643625,6.9051,144.75,144.73,0.05180533]
[1749839643828,0.05089992,144.76,144.73,0.05180533]
[1749839644033,7.61649427,144.75,144.73,0.05180533]
[1749839644223,6.9054,144.74,144.73,0.05180533]
[1749839644818,0.05089992,144.76,144.73,0.05180533]
[1749839645932,7.61407622,144.75,144.73,0.05180533]
[1749839646137,2.75697666,144.74,144.73,0.05180533]
[1749839646327,14.51902531,144.74,144.73,0.05180533]
[1749839646530,11.76216786,144.74,144.73,0.05180533]
[1749839646734,11.75942093,144.74,144.73,0.05180533]
[1749839646935,9.66237134,144.74,144.73,0.05180533]
[1749839647137,14.51666005,144.74,144.73,0.05180533]
[1749839647337,9.66237134,144.74,144.73,0.05180533]
[1749839647643,0.05089992,144.76,144.73,11.14328893]
[1749839648032,0.05089992,144.76,144.75,6.9049]
[1749839648442,437.26,144.83,144.76,6.9042]
[1749839648640,6.9037,144.78,144.74,11.08375703]
[1749839648835,6.9037,144.78,144.74,50.72375703]
[1749839649027,6.9037,144.78,144.75,6.9046]
[1749839649227,6.9037,144.78,144.74,50.72375703]
[1749839649527,6.94904129,144.77,144.75,0.04743631]
[1749839649729,6.94904129,144.77,144.75,0.04734979]
[1749839649730,0.05299296,144.77,144.75,0.04734979]
[1749839650235,18.69673723,144.76,144.68,2.3425]
[1749839650434,7.61093257,144.75,144.68,2.3425]
[1749839650642,7.60951339,144.74,144.68,2.3425]
[1749839650835,6.9066,144.72,144.69,6.9076]
[1749839651332,6.9069,144.71,144.69,6.95163894]
[1749839651531,6.9069,144.71,144.69,0.04403894]
[1749839652042,6.9073,144.7,144.69,0.04403894]
[1749839652833,0.04469933,144.72,144.62,4.6103]
[1749839652834,39.64,144.71,144.62,4.6103]
[1749839653143,11.08375703,144.7,144.62,4.6103]
[1749839653331,6.9095,144.66,144.62,11.521]
[1749839653534,11.08375703,144.7,144.62,4.6103]
[1749839653734,44.3075,144.71,144.62,15.69405703]
[1749839653934,0.04900547,144.67,144.65,0.04837832]
[1749839654340,6.95810547,144.67,144.65,0.04837832]
[1749839654742,0.04900547,144.67,144.65,0.04837832]
[1749839655138,0.04900547,144.67,144.66,6.9092]
[1749839655744,39.64,144.74,144.66,11.08375703]
[1749839656437,6.9073,144.7,144.67,6.9084]
[1749839656838,6.95155609,144.7,144.68,6.9083]
[1749839657148,0.04425609,144.7,144.68,11.08375703]
[1749839657346,0.04425609,144.7,144.67,18.04226957]
[1749839657542,6.95165609,144.7,144.67,18.04226957]
[1749839657848,0.04425609,144.7,144.67,11.13366957]
[1749839658042,0.04425609,144.7,144.68,6.908]
[1749839658438,0.04425609,144.7,144.67,0.04991254]
[1749839659148,6.9083,144.68,144.67,0.04991254]
[1749839660439,6.9111,144.63,144.6,1.20302831]
[1749839660641,11.08375703,144.67,144.56,11.08375703]
[1749839661047,6.9114,144.62,144.57,6.9132]
[1749839661247,15.60815703,144.67,144.56,11.08375703]
[1749839661444,15.60815703,144.67,144.6,0.04732559]
[1749839661746,0.05262516,144.63,144.6,0.04732559]
[1749839662140,6.96362516,144.63,144.6,0.04732559]
[1749839662340,0.05262516,144.63,144.6,0.04732559]
[1749839662741,6.9111,144.62,144.6,0.04732559]
[1749839663549,6.96342516,144.63,144.6,0.04732559]
[1749839664247,0.05262516,144.63,144.6,0.04732559]
[1749839664747,6.9115,144.62,144.6,0.04732559]
[1749839665447,6.96352516,144.63,144.6,0.04732559]
[1749839666050,6.96352516,144.63,144.6,6.95912559]
[1749839667045,0.05262516,144.63,144.6,0.04732559]
[1749839667243,0.05262516,144.63,144.6,11.13108262]
[1749839667448,0.05262516,144.63,144.61,6.9112]
[1749839668248,0.05262516,144.63,144.6,11.13108262]
[1749839668552,0.05262516,144.63,144.6,0.04732559]
[1749839668854,0.05262516,144.63,144.61,6.9116]
[1749839670141,0.05262516,144.63,144.62,17.99485703]
[1749839670847,41.5678,144.71,144.62,50.34375703]
[1749839671049,39.26,144.71,144.64,11.08375703]
[1749839671543,437.1,144.74,144.66,11.08375703]
[1749839671747,0.04938058,144.71,144.69,0.04399461]
[1749839671949,6.9073,144.7,144.69,0.04399461]
[1749839672348,6.9073,144.7,144.69,9.461e-05]
[1749839674656,0.04938058,144.71,144.69,9.461e-05]
[1749839674657,6.95648058,144.71,144.69,9.461e-05]
[1749839674854,0.04938058,144.71,144.69,9.461e-05]
[1749839675047,6.9073,144.7,144.69,9.461e-05]
[1749839677952,14.50820867,144.7,144.69,9.461e-05]
[1749839678259,6.9073,144.7,144.69,9.461e-05]
[1749839678459,14.50760637,144.7,144.69,9.461e-05]
[1749839678757,14.50743773,144.7,144.69,9.461e-05]
[1749839679059,11.75983648,144.7,144.69,9.461e-05]
[1749839679263,14.50807414,144.7,144.69,9.461e-05]
[1749839679451,14.50816294,144.7,144.69,9.461e-05]
[1749839679754,48.91511727,144.7,144.69,9.461e-05]
[1749839679959,58.46774143,144.7,144.69,9.461e-05]
[1749839680152,58.46712571,144.7,144.69,9.461e-05]
[1749839680462,58.4681926,144.7,144.69,9.461e-05]
[1749839680754,58.46816093,144.7,144.69,9.461e-05]
[1749839680958,58.4681637,144.7,144.69,9.461e-05]
[1749839681156,55.720158,144.7,144.69,9.461e-05]
[1749839681359,58.46812129,144.7,144.69,9.461e-05]
[1749839681560,53.76604802,144.7,144.69,9.461e-05]
[1749839681952,53.75738644,144.7,144.69,9.461e-05]
[1749839682152,53.75727052,144.7,144.69,9.461e-05]
[1749839682360,51.01802494,144.7,144.69,9.461e-05]
[1749839682754,53.75784318,144.7,144.69,9.461e-05]
[1749839682952,53.7578422,144.7,144.69,9.461e-05]
[1749839683152,51.01927505,144.7,144.69,9.461e-05]
[1749839683462,53.75971328,144.7,144.69,9.461e-05]
[1749839683659,53.75912798,144.7,144.69,9.461e-05]
[1749839683858,53.75846056,144.7,144.69,9.461e-05]
[1749839684357,48.90678146,144.7,144.69,9.461e-05]
[1749839684563,53.75451464,144.7,144.69,9.461e-05]
[1749839684764,53.7544606,144.7,144.69,9.461e-05]
[1749839684951,53.75430835,144.7,144.69,9.461e-05]
[1749839685262,53.75422415,144.7,144.69,9.461e-05]
[1749839685461,53.75393642,144.7,144.69,9.461e-05]
[1749839685660,51.01479234,144.7,144.69,9.461e-05]
[1749839685866,53.75342764,144.7,144.69,9.461e-05]
[1749839686057,53.75274859,144.7,144.69,9.461e-05]
[1749839686257,53.75273054,144.7,144.69,9.461e-05]
[1749839686461,48.90592413,144.7,144.69,9.461e-05]
[1749839686664,53.74992387,144.7,144.69,9.461e-05]
[1749839686863,59.18446426,144.7,144.69,9.461e-05]
[1749839687063,56.69394266,144.7,144.69,9.461e-05]
[1749839687360,56.69394279,144.7,144.69,9.461e-05]
[1749839687564,56.69398375,144.7,144.69,9.461e-05]
[1749839687965,61.54409113,144.7,144.69,9.461e-05]
[1749839688367,56.69888707,144.7,144.69,9.461e-05]
[1749839688664,56.69884795,144.7,144.69,9.461e-05]
[1749839688963,61.54194438,144.7,144.69,9.461e-05]
[1749839689261,61.54151497,144.7,144.69,9.461e-05]
[1749839689458,53.36456385,144.7,144.69,9.461e-05]
[1749839689668,51.00580644,144.7,144.69,9.461e-05]
[1749839690170,46.1673,144.7,144.69,9.461e-05]
[1749839693167,62.68993588,144.7,144.69,9.461e-05]
[1749839693364,6.9103,144.64,144.61,11.4531]
[1749839693762,6.9099,144.65,144.61,4.5417]
[1749839694070,50.34375703,144.7,144.62,6.9109]
[1749839694260,50.34375703,144.7,144.65,0.04793366]
[1749839694466,0.04928051,144.67,144.65,0.04793366]
[1749839694959,6.9092,144.66,144.65,0.04793366]
[1749839697062,6.9068,144.72,144.68,6.908]
[1749839697259,6.9068,144.72,144.68,18.00782734]
[1749839697870,11.09982734,144.78,144.68,11.09982734]
[1749839698068,5.43735162,144.77,144.68,11.09982734]
[1749839698269,0.05082401,144.74,144.72,0.04442411]
[1749839698462,6.9061,144.73,144.72,0.04442411]
[1749839698860,0.05082401,144.74,144.72,0.04442411]
[1749839699457,6.95622401,144.74,144.72,0.04442411]
[1749839699669,0.05082401,144.74,144.72,0.04442411]
[1749839700367,38.98,144.79,144.73,11.09318141]
[1749839700570,38.96,144.82,144.75,11.09318141]
[1749839700769,5.43374311,144.81,144.75,17.99788141]
[1749839700966,5.43374311,144.81,144.75,11.09318141]
[1749839701270,0.04420763,144.79,144.77,0.0458159]
[1749839701967,0.04420763,144.79,144.77,11.13899731]
[1749839702169,38.96,144.87,144.77,50.09899731]
[1749839702471,5.43390977,144.86,144.81,11.09318141]
[1749839703264,0.04698728,144.85,144.82,0.04497229]
[1749839703665,6.9009,144.84,144.82,0.04497229]
[1749839703867,0.04698728,144.85,144.82,0.04497229]
[1749839704171,0.04698728,144.85,144.83,11.09318141]
[1749839704764,0.04698728,144.85,144.82,6.94617229]
[1749839705568,0.04698728,144.85,144.82,0.04497229]
[1749839706077,11.14016869,144.85,144.76,45.8642]
[1749839706366,38.96,144.86,144.76,45.8642]
[1749839706367,38.96,144.86,144.76,50.05318141]
[1749839706761,38.96,144.86,144.8,11.09318141]
[1749839706958,0.04534193,144.84,144.82,0.04678679]
[1749839707271,0.04779446,144.84,144.82,0.05069913]
[1749839707972,0.04779446,144.84,144.82,11.14388054]
[1749839708370,43.5492,144.92,144.82,11.14388054]
[1749839708568,38.94,144.98,144.89,11.09318141]
[1749839708770,7.5968557,144.97,144.89,11.09318141]
[1749839709068,11.09318141,144.95,144.85,50.03318141]
[1749839709277,38.94,144.94,144.85,50.03318141]
[1749839709569,0.04734747,144.91,144.88,0.04917897]
[1749839710164,6.8983,144.89,144.88,0.04917897]
[1749839711176,6.8979,144.9,144.88,0.04917897]
[1749839711476,0.04734747,144.91,144.88,0.04917897]
[1749839711674,6.8978,144.9,144.88,0.04917897]
[1749839711976,0.04734747,144.91,144.88,0.04917897]
[1749839712477,6.8983,144.89,144.88,0.04917897]
[1749839713576,6.8979,144.9,144.88,0.04917897]
[1749839713872,0.04734747,144.91,144.88,0.04917897]
[1749839714874,0.04734747,144.91,144.88,6.94757897]
[1749839715374,0.04734747,144.91,144.88,0.04917897]
[1749839715778,6.8983,144.89,144.88,0.04917897]
[1749839716180,0.04734747,144.91,144.88,0.04917897]
[1749839716371,11.09318141,144.9,144.88,0.04917897]
[1749839716683,11.09318141,144.9,144.88,7.897e-05]
[1749839716879,2.79566471,144.89,144.88,7.897e-05]
[1749839717178,11.8049012,144.89,144.88,7.897e-05]
[1749839717579,2.79577843,144.89,144.88,7.897e-05]
[1749839717873,0.04734747,144.91,144.88,7.897e-05]
[1749839718074,4.92858878,144.9,144.88,7.897e-05]
[1749839718275,6.8983,144.89,144.88,7.897e-05]
[1749839719376,14.62368868,144.89,144.88,7.897e-05]
[1749839719573,14.62292501,144.89,144.88,7.897e-05]
[1749839719776,14.62266979,144.89,144.88,7.897e-05]
[1749839720081,14.62121014,144.89,144.88,7.897e-05]
[1749839720281,14.61985515,144.89,144.88,7.897e-05]
[1749839720473,6.8983,144.89,144.88,7.897e-05]
[1749839720879,14.61890561,144.89,144.88,7.897e-05]
[1749839721085,9.6860891,144.89,144.88,7.897e-05]
[1749839721376,14.60913359,144.89,144.88,7.897e-05]
[1749839721575,14.60901452,144.89,144.88,7.897e-05]
[1749839721777,6.9008,144.84,144.81,4.7109]
[1749839721981,11.09318141,144.87,144.81,4.7109]
[1749839722175,11.09318141,144.87,144.8,38.9]
[1749839722884,0.05231213,144.85,144.82,0.04376054]
[1749839723383,6.9014,144.83,144.82,0.04376054]
[1749839723891,0.05231213,144.85,144.82,6.94526054]
[1749839723892,6.95271213,144.85,144.82,6.94526054]
[1749839724379,6.95271213,144.85,144.82,0.04376054]
[1749839724588,0.05231213,144.85,144.82,0.04376054]
[1749839725078,6.9011,144.83,144.82,0.04376054]
[1749839725382,50.04549354,144.85,144.76,43.3961]
[1749839725677,50.04549354,144.85,144.76,2.1929]
[1749839725678,11.09318141,144.81,144.76,2.1929]
[1749839726289,6.9038,144.78,144.77,0.05199955]
[1749839727881,0.04759716,144.8,144.77,0.05199955]
[1749839728484,6.9035,144.78,144.77,0.05199955]
[1749839728879,6.9032,144.79,144.77,0.05199955]
[1749839729387,6.9035,144.78,144.77,0.05199955]
[1749839733081,0.04759716,144.8,144.77,0.05199955]
[1749839735085,2.75722332,144.79,144.77,0.05199955]
[1749839735284,0.04759716,144.8,144.77,0.05199955]
[1749839735479,2.75713075,144.79,144.77,0.05199955]
[1749839735680,2.75705612,144.78,144.77,6.95599955]
[1749839736481,2.75777665,144.78,144.77,6.95599955]
[1749839736683,2.75794013,144.78,144.77,6.95599955]
[1749839737193,0.04759716,144.8,144.78,6.9035]
[1749839737385,2.75815146,144.79,144.78,6.9035]
[1749839737593,50.01318141,144.87,144.8,6.9023]
[1749839737794,38.92,144.87,144.8,6.9023]
[1749839738792,0.04926729,144.85,144.82,0.0438766]
[1749839739187,6.9011,144.83,144.82,0.0438766]
[1749839740893,56.91428141,144.83,144.82,7.66e-05]
[1749839741095,50.01318141,144.83,144.74,38.92]
[1749839741291,38.92,144.83,144.76,6.9044]
[1749839741497,6.9023,144.81,144.76,11.09318141]
[1749839742094,0.04947264,144.8,144.77,6.95538968]
[1749839742302,6.95413986,144.8,144.77,6.94994448]
[1749839742503,0.05143986,144.8,144.77,0.04614448]
[1749839743697,6.9034,144.79,144.77,0.04614448]
[1749839744404,6.9035,144.78,144.77,0.04614448]
[1749839744603,0.05143986,144.8,144.77,0.04614448]
[1749839745297,6.9035,144.79,144.77,0.04614448]
[1749839745502,0.05143986,144.8,144.77,0.04614448]
[1749839745905,6.9035,144.78,144.77,0.04614448]
[1749839746899,0.05143986,144.8,144.77,0.04614448]
[1749839747106,0.05143986,144.8,144.79,11.09318141]
[1749839747402,38.92,144.86,144.8,6.9022]
[1749839747608,6.901,144.84,144.79,13.45658141]
[1749839747810,6.8327,144.88,144.8,6.9022]
[1749839748010,5.42922347,144.87,144.8,6.9022]
[1749839748211,0.04803398,144.85,144.82,0.05011289]
[1749839748411,11.14121539,144.85,144.82,0.05011289]
[1749839748609,6.9033,144.79,144.75,41.2542]
[1749839749016,50.03318141,144.85,144.75,48.159]
[1749839749217,5.42894204,144.84,144.75,41.2542]
[1749839749710,6.903,144.79,144.78,0.04781325]
[1749839751324,6.903,144.79,144.72,2.2378]
[1749839751325,6.9054,144.75,144.72,41.1778]
[1749839752215,6.9055,144.74,144.72,41.1778]
[1749839752518,0.04460388,144.74,144.72,41.22509527]
[1749839753517,0.04460388,144.74,144.72,38.98729527]
[1749839753710,0.04460388,144.74,144.72,0.04729527]
[1749839754113,6.9059,144.73,144.72,0.04729527]
[1749839755519,0.04460388,144.74,144.72,0.04729527]
[1749839756418,6.95020388,144.74,144.72,0.04729527]
[1749839756725,0.04460388,144.74,144.72,0.04729527]
[1749839757223,6.95030388,144.74,144.72,0.04729527]
[1749839757720,6.9059,144.73,144.72,0.04729527]
[1749839758222,0.04460388,144.74,144.72,0.04729527]
[1749839758223,6.95020388,144.74,144.72,0.04729527]
[1749839758418,38.96,144.81,144.72,11.14047668]
[1749839758627,436.6,144.84,144.74,11.09318141]
[1749839758816,6.9028,144.8,144.75,2.2223]
[1749839759010,436.6,144.84,144.75,2.2223]
[1749839759621,0.04919654,144.81,144.78,0.05018218]
[1749839760218,6.903,144.79,144.78,0.05018218]
[1749839760520,55.46400618,144.79,144.7,38.96]
[1749839760729,55.46400618,144.79,144.68,2.2674]
[1749839760730,6.9071,144.71,144.68,9.1755]
[1749839761022,11.09318141,144.74,144.67,41.1823]
[1749839761212,38.96,144.75,144.64,38.96]
[1749839761213,6.9082,144.69,144.64,38.96]
[1749839761417,0.05091905,144.68,144.65,0.04882359]
[1749839762420,6.95941905,144.68,144.65,0.04882359]
[1749839762616,0.05091905,144.68,144.65,0.04882359]
[1749839762820,6.95961905,144.68,144.65,0.04882359]
[1749839763029,0.05091905,144.68,144.65,0.04882359]
[1749839763928,0.05091905,144.68,144.66,11.09318141]
[1749839764124,0.05091905,144.68,144.65,50.102005]
[1749839764916,0.05091905,144.68,144.67,6.9088]
[1749839765127,0.05091905,144.68,144.65,39.00882359]
[1749839766024,0.05091905,144.68,144.65,50.102005]
[1749839766922,0.05091905,144.68,144.66,6.9092]
[1749839767423,0.05091905,144.68,144.65,50.102005]
[1749839767626,0.05091905,144.68,144.67,6.9088]
[1749839769432,0.05091905,144.68,144.65,39.00882359]
[1749839769933,0.05091905,144.68,144.65,0.04882359]
[1749839770118,6.9092,144.66,144.65,0.04882359]
[1749839770522,0.05091905,144.68,144.65,0.04882359]
[1749839770925,0.05091905,144.68,144.66,6.9092]
[1749839771121,0.05091905,144.68,144.65,0.04882359]
[1749839771727,6.9089,144.67,144.65,0.04882359]
[1749839772330,6.95931905,144.68,144.65,6.95852359]
[1749839772525,0.05091905,144.68,144.65,0.04882359]
[1749839773129,0.05091905,144.68,144.66,11.09318141]
[1749839773522,0.05091905,144.68,144.65,0.04882359]
[1749839773726,0.05091905,144.68,144.66,6.9089]
[1749839774324,6.95921905,144.68,144.66,6.9089]
[1749839774623,6.95921905,144.68,144.65,0.04882359]
[1749839774624,0.05091905,144.68,144.65,0.04882359]
[1749839774821,6.95931905,144.68,144.65,0.04882359]
[1749839775023,0.05091905,144.68,144.65,0.04882359]
[1749839776222,6.95921905,144.68,144.65,6.95832359]
[1749839776937,0.05091905,144.68,144.65,0.04882359]
[1749839777234,6.9091,144.67,144.65,0.04882359]
[1749839777932,6.9092,144.66,144.65,0.04882359]
[1749839778640,6.909,144.67,144.65,0.04882359]
[1749839779334,6.9092,144.66,144.65,0.04882359]
[1749839781141,0.05091905,144.68,144.65,11.142005]
[1749839781639,0.05091905,144.68,144.65,0.04882359]
[1749839782942,6.9092,144.66,144.65,0.04882359]
[1749839783530,50.08410046,144.68,144.59,38.94]
[1749839783734,2.2607,144.67,144.59,38.94]
[1749839783935,11.09318141,144.66,144.59,38.94]
[1749839784239,11.09318141,144.66,144.58,6.913]
[1749839784443,0.04480238,144.63,144.61,0.04401704]
[1749839785740,6.9112,144.62,144.61,0.04401704]
[1749839791640,6.9132,144.58,144.55,11.09318141]
[1749839792042,11.12173626,144.6,144.53,1.20373573]
[1749839792347,398.08,144.64,144.47,46.24345737]
[1749839792348,11.12173626,144.58,144.47,46.24345737]
[1749839792549,38.96,144.57,144.47,48.51915737]
[1749839792755,6.9159,144.52,144.51,0.04517717]
[1749839792940,0.05232835,144.53,144.51,0.04517717]
[1749839793345,6.9159,144.52,144.51,0.04517717]
[1749839793549,0.05232835,144.53,144.51,0.04517717]
[1749839794455,6.9159,144.52,144.51,0.04517717]
[1749839795655,6.9159,144.52,144.47,2.74915737]
[1749839795656,18.04173626,144.52,144.47,2.74915737]
[1749839795855,11.12173626,144.52,144.47,2.74915737]
[1749839796144,41.40142835,144.53,144.47,2.74915737]
[1749839796145,2.1792,144.51,144.47,2.74915737]
[1749839796351,13.30093626,144.51,144.47,2.74915737]
[1749839796544,6.9179,144.48,144.47,2.74915737]
[1749839797444,38.96,144.49,144.47,2.74915737]
[1749839797646,0.05215136,144.5,144.47,2.74915737]
[1749839798053,0.05215136,144.5,144.47,9.66715737]
[1749839798250,0.05215136,144.5,144.47,2.74915737]
[1749839799345,6.9177,144.49,144.47,2.74915737]
[1749839799550,0.05215136,144.5,144.47,2.74915737]
[1749839799957,6.9179,144.48,144.47,2.74915737]
[1749839800453,0.05215136,144.5,144.47,2.74915737]
[1749839801148,6.9179,144.48,144.47,2.74915737]
[1749839801355,0.05215136,144.5,144.47,2.74915737]
[1749839802348,6.9179,144.48,144.47,2.74915737]
[1749839803851,45.9179,144.48,144.47,2.74915737]
[1749839810658,57.05077407,144.48,144.47,2.74915737]
[1749839812871,45.9179,144.48,144.47,2.74915737]
[1749839814568,6.9179,144.48,144.47,2.74915737]
[1749839816470,0.05215136,144.5,144.4,6.7973]
[1749839816471,11.13287407,144.49,144.4,6.7973]
[1749839816676,11.13287407,144.46,144.4,6.7973]
[1749839816870,6.9204,144.43,144.39,39.68]
[1749839817178,11.13287407,144.46,144.39,39.68]
[1749839817377,6.9206,144.43,144.41,0.04541973]
[1749839817576,0.04763538,144.44,144.41,0.04541973]
[1749839817974,6.9207,144.42,144.41,0.04541973]
[1749839818471,0.04763538,144.44,144.41,0.04541973]
[1749839818667,6.9206,144.43,144.41,0.04541973]
[1749839819070,0.04763538,144.44,144.41,0.04541973]
[1749839819274,6.9203,144.43,144.41,0.04541973]
[1749839819876,6.9203,144.43,144.37,5.94420271]
[1749839819877,6.9207,144.42,144.37,1.20490271]
[1749839820177,11.13287407,144.42,144.33,1.20519481]
[1749839820379,11.13287407,144.4,144.35,6.9238]
[1749839820979,0.0450114,144.39,144.36,0.04769172]
[1749839821383,0.0450114,144.39,144.37,6.9231]
[1749839821572,0.0450114,144.39,144.36,0.04769172]
[1749839821879,0.0450114,144.39,144.37,6.9229]
[1749839822175,39.68,144.46,144.37,50.81287407]
[1749839822371,39.68,144.46,144.38,4.5585]
[1749839822875,39.68,144.52,144.41,11.13287407]
[1749839823076,0.04841467,144.48,144.47,6.9181]
[1749839823280,0.05044938,144.49,144.46,2.38455458]
[1749839823579,39.68,144.55,144.47,11.13287407]
[1749839823776,44.2901,144.58,144.49,11.13287407]
[1749839823979,41.9943,144.58,144.5,6.9165]
[1749839824180,41.9943,144.58,144.49,50.81287407]
[1749839824482,0.0510504,144.55,144.52,0.04677156]
[1749839824690,0.0510504,144.55,144.53,6.9154]
[1749839824872,0.0510504,144.55,144.52,0.04677156]
[1749839825076,0.0510504,144.55,144.53,6.915]
[1749839825381,0.0510504,144.55,144.53,50.81287407]
[1749839825686,0.0510504,144.55,144.53,46.5953]
[1749839826185,0.0510504,144.55,144.54,6.915]
[1749839826370,39.68,144.61,144.53,39.68]
[1749839826575,39.68,144.61,144.54,2.1925]
[1749839826772,6.9129,144.59,144.55,6.9141]
[1749839827084,39.68,144.61,144.54,2.1925]
[1749839827282,6.9143,144.56,144.54,2.1925]
[1749839827486,6.96370797,144.56,144.54,2.24191822]
[1749839827874,0.04940797,144.56,144.54,2.24191822]
[1749839828578,0.04940797,144.56,144.54,13.37479229]
[1749839828775,6.9118,144.61,144.57,6.9135]
[1749839828979,41.9743,144.64,144.54,15.53157407]
[1749839829184,41.9743,144.64,144.56,11.13287407]
[1749839829584,6.912,144.61,144.57,6.9134]
[1749839829984,0.05193734,144.6,144.58,0.04616973]
[1749839830279,0.05193734,144.6,144.58,6.95896973]
[1749839830588,0.05193734,144.6,144.58,0.04616973]
[1749839831290,6.96403734,144.6,144.58,0.04616973]
[1749839831584,0.05193734,144.6,144.58,0.04616973]
[1749839832375,39.66,144.67,144.58,11.1790438]
[1749839832579,39.66,144.67,144.58,11.13287407]
[1749839833086,39.66,144.67,144.6,6.9118]
[1749839833284,39.66,144.67,144.58,11.13287407]
[1749839833590,6.9111,144.63,144.61,0.04588952]
[1749839833985,0.05275449,144.64,144.61,0.04588952]
[1749839834187,6.9107,144.63,144.61,0.04588952]
[1749839834987,6.9112,144.62,144.61,0.04588952]
[1749839836791,0.05275449,144.64,144.61,0.04588952]
[1749839836792,6.9108,144.63,144.61,0.04588952]
[1749839836995,0.05275449,144.64,144.61,0.04588952]
[1749839837384,6.9112,144.62,144.61,0.04588952]
[1749839838185,6.9109,144.63,144.61,0.04588952]
[1749839838782,0.05275449,144.64,144.61,0.04588952]
[1749839839691,6.9112,144.62,144.61,0.04588952]
[1749839840692,6.9112,144.62,144.54,2.1925]
[1749839840693,50.51287407,144.62,144.54,2.1925]
[1749839840994,11.13287407,144.58,144.51,2.3374]
[1749839841187,6.9155,144.53,144.51,2.3374]
[1749839841589,6.96468232,144.53,144.51,2.39010876]
[1749839841989,6.9159,144.52,144.51,0.05270876]
[1749839842190,0.04918232,144.53,144.51,0.05270876]
[1749839842585,6.9159,144.52,144.51,0.05270876]
[1749839843900,0.04918232,144.53,144.51,0.05270876]
[1749839844292,0.04918232,144.53,144.51,6.96870876]
[1749839844891,0.04918232,144.53,144.52,6.9159]
[1749839846394,0.04918232,144.53,144.51,46.34890876]
[1749839846801,0.04918232,144.53,144.51,39.43270876]
[1749839847598,6.96498232,144.53,144.51,0.05270876]
[1749839847995,0.04918232,144.53,144.51,0.05270876]
[1749839848197,6.9159,144.52,144.51,0.05270876]
[1749839849107,0.04918232,144.53,144.51,0.05270876]
[1749839849302,39.38,144.58,144.51,11.18558283]
[1749839849602,43.9577,144.61,144.52,39.38]
[1749839849798,6.9134,144.58,144.52,41.6347]
[1749839850102,43.9577,144.61,144.53,11.13287407]
[1749839850103,41.6191,144.61,144.53,11.13287407]
[1749839850301,0.04387826,144.58,144.56,0.04550639]
[1749839850602,6.95737826,144.58,144.56,0.04550639]
[1749839850992,0.04387826,144.58,144.56,0.04550639]
[1749839851397,0.04387826,144.58,144.57,6.9136]
[1749839852010,0.04387826,144.58,144.56,0.04550639]
[1749839852396,0.04387826,144.58,144.56,11.17838046]
[1749839852701,11.13287407,144.63,144.56,0.04550639]
[1749839852918,13.44247407,144.63,144.53,39.38]
[1749839853207,6.9134,144.58,144.55,6.9142]
[1749839853503,6.9134,144.58,144.55,6.96135498]
[1749839853504,6.96602474,144.58,144.55,6.96135498]
[1749839853702,6.914,144.56,144.55,0.04715498]
[1749839854205,6.9137,144.57,144.55,6.96155498]
[1749839854398,6.9137,144.57,144.55,0.04715498]
[1749839855400,6.914,144.56,144.55,0.04715498]
[1749839860008,0.05262474,144.58,144.55,6.96165498]
[1749839860611,0.05262474,144.58,144.55,0.04715498]
[1749839861111,6.914,144.56,144.55,0.04715498]
[1749839861310,0.05262474,144.58,144.55,0.04715498]
[1749839861813,6.9138,144.57,144.55,0.04715498]
[1749839862011,0.05262474,144.58,144.55,0.04715498]
[1749839864708,6.914,144.56,144.55,0.04715498]
[1749839865814,0.05262474,144.58,144.55,0.04715498]
[1749839866311,6.9136,144.57,144.55,0.04715498]
[1749839866906,0.05262474,144.58,144.55,0.04715498]
[1749839867513,6.9136,144.57,144.55,0.04715498]
[1749839867707,0.05262474,144.58,144.55,0.04715498]
[1749839868601,0.05262474,144.58,144.56,6.9137]
[1749839868802,0.05262474,144.58,144.55,0.04715498]
[1749839869014,0.05262474,144.58,144.56,11.13287407]
[1749839869213,0.05262474,144.58,144.57,6.9136]
[1749839870413,0.05262474,144.58,144.56,18.04667407]
[1749839870817,0.05262474,144.58,144.56,11.13287407]
[1749839871011,0.05262474,144.58,144.55,39.32715498]
[1749839871315,0.05262474,144.58,144.55,0.04715498]
[1749839871611,6.914,144.56,144.55,0.04715498]
[1749839873913,6.9136,144.57,144.55,0.04715498]
[1749839874115,0.05262474,144.58,144.55,0.04715498]
[1749839874416,6.914,144.56,144.55,0.04715498]
[1749839880512,6.914,144.56,144.48,12.99260449]
[1749839880513,6.92,144.56,144.47,39.28]
[1749839880715,11.13287407,144.57,144.44,11.13287407]
[1749839880716,11.13287407,144.54,144.44,11.13287407]
[1749839880918,6.9207,144.43,144.35,47.79570449]
[1749839881214,39.28,144.45,144.36,4.6891]
[1749839881412,0.05316169,144.42,144.39,0.0447182]
[1749839881607,0.05316169,144.42,144.39,39.3247182]
[1749839881824,2.3305,144.52,144.41,11.13615595]